bitfinex/quotes_SOLUSD_20240622
["timestamp","ask_amount","ask_price","bid_price","bid_amount"]
[1719026551397,7.4065,135.02,134.95,16.0596]
[1719026551596,7.4071,135.01,134.95,16.0596]
[1719026551817,7.4071,135.01,134.98,6.47]
[1719026553625,7.4075,135.0,134.95,16.0596]
[1719026553797,7.4075,135.0,134.89,25.88]
[1719026553798,7.4076,135.0,134.96,6.47]
[1719026554199,7.408,134.99,134.96,6.47]
[1719026554825,7.408,134.99,134.9,23.1921]
[1719026555012,7.408,134.99,134.96,6.47]
[1719026555324,7.4075,135.0,134.96,6.47]
[1719026555520,0.17,135.01,134.97,6.47]
[1719026555729,20.0,135.01,134.98,6.47]
[1719026556526,6.0653,135.05,135.0,6.47]
[1719026556704,20.0,135.04,135.01,6.47]
[1719026557732,20.0,135.04,134.95,23.1921]
[1719026557932,20.0,135.04,134.99,6.47]
[1719026558099,20.0,135.04,135.0,6.47]
[1719026558299,20.0,135.04,134.99,6.47]
[1719026558502,7.4059,135.03,134.99,6.47]
[1719026560532,7.4069,135.01,134.99,6.47]
[1719026560714,21.2169,134.91,134.86,18.8544]
[1719026560925,15.1516,134.91,134.87,6.47]
[1719026561111,7.4132,134.9,134.86,18.8544]
[1719026561430,7.4132,134.9,134.87,6.47]
[1719026561615,7.4132,134.9,134.86,25.3244]
[1719026561808,7.4132,134.9,134.86,6.47]
[1719026562540,7.4132,134.9,134.84,0.8854764]
[1719026562715,7.4132,134.9,134.87,6.47]
[1719026563643,7.4132,134.9,134.84,0.8854764]
[1719026565850,22.7269,134.94,134.84,0.8854764]
[1719026566021,20.0,134.93,134.85,19.44]
[1719026566227,19.44,134.86,134.84,0.8854764]
[1719026566421,7.4175,134.82,134.75,15.1516]
[1719026566617,27.4179,134.81,134.75,15.1516]
[1719026567517,7.4174,134.82,134.75,15.1516]
[1719026567720,7.4169,134.83,134.75,15.1516]
[1719026568936,7.4158,134.85,134.77,19.44]
[1719026569127,7.4153,134.86,134.78,0.17]
[1719026569435,7.4184,134.8,134.75,15.1516]
[1719026569644,7.4179,134.81,134.75,15.1516]
[1719026570031,7.4163,134.84,134.74,15.88]
[1719026570248,7.4163,134.84,134.75,19.44]
[1719026571918,72.2695,134.88,134.76,0.17]
[1719026571919,7.4154,134.86,134.76,0.17]
[1719026572119,7.4154,134.86,134.78,19.44]
[1719026572552,7.4147,134.87,134.78,19.44]
[1719026573054,7.4151,134.86,134.78,19.44]
[1719026577840,7.4156,134.85,134.78,19.44]
[1719026578044,7.417,134.83,134.76,0.17]
[1719026578362,7.417,134.83,134.75,39.44]
[1719026579850,7.4164,134.84,134.75,39.44]
[1719026580053,7.4158,134.85,134.76,0.34]
[1719026581856,7.4151,134.86,134.76,0.34]
[1719026582069,7.4148,134.87,134.78,19.44]
[1719026582238,7.4151,134.86,134.78,19.44]
[1719026582438,7.4147,134.87,134.78,19.44]
[1719026582763,16.6616,134.88,134.78,19.44]
[1719026582764,7.4141,134.88,134.8,22.3649]
[1719026582941,27.4146,134.87,134.8,22.3649]
[1719026584145,7.4151,134.86,134.8,22.3649]
[1719026584937,27.4147,134.87,134.8,22.3649]
[1719026585364,20.0,134.87,134.8,22.3649]
[1719026586356,7.4142,134.88,134.8,22.3649]
[1719026586667,7.4145,134.87,134.8,22.3649]
[1719026587967,7.4142,134.88,134.8,22.3649]
[1719026589163,7.4146,134.87,134.8,22.3649]
[1719026589360,7.4154,134.86,134.8,22.3649]
[1719026590942,7.4148,134.87,134.8,22.3649]
[1719026591143,7.4153,134.86,134.8,22.3649]
[1719026593878,0.34,134.85,134.8,15.88]
[1719026594056,7.4162,134.84,134.8,15.88]
[1719026595672,7.5858,134.85,134.8,15.88]
[1719026596168,0.17,134.85,134.8,15.88]
[1719026596374,7.5851,134.86,134.8,15.88]
[1719026597975,7.4156,134.85,134.8,15.88]
[1719026598155,7.5853,134.86,134.8,15.88]
[1719026598980,7.4158,134.85,134.8,15.88]
[1719026600979,7.4152,134.86,134.8,15.88]
[1719026602181,27.4147,134.87,134.8,15.88]
[1719026602389,20.0,134.87,134.8,15.88]
[1719026602593,7.4141,134.88,134.8,15.88]
[1719026602757,19.44,134.93,134.8,15.88]
[1719026602758,7.4136,134.89,134.81,112.099931]
[1719026603666,7.414,134.88,134.81,112.099931]
[1719026607474,13.8937,134.89,134.83,6.48]
[1719026607685,7.414,134.88,134.84,6.48]
[1719026608900,13.8936,134.89,134.84,6.48]
[1719026609274,7.4136,134.89,134.84,6.48]
[1719026609793,7.414,134.88,134.84,6.48]
[1719026610694,13.8937,134.89,134.84,6.48]
[1719026611295,7.4137,134.89,134.84,6.48]
[1719026611605,13.8937,134.89,134.84,6.48]
[1719026611988,7.4137,134.89,134.84,6.48]
[1719026612610,7.414,134.88,134.84,6.48]
[1719026615377,7.414,134.88,134.81,112.099931]
[1719026615574,6.48,134.88,134.81,112.099931]
[1719026615780,6.48,134.86,134.81,112.099931]
[1719026615995,6.65,134.87,134.81,118.579931]
[1719026616288,7.4154,134.86,134.81,118.579931]
[1719026616613,7.4154,134.86,134.81,112.099931]
[1719026616908,7.4154,134.86,134.82,6.48]
[1719026617202,7.4154,134.86,134.81,118.579931]
[1719026617615,7.4157,134.85,134.81,112.099931]
[1719026617786,7.4157,134.85,134.81,118.579931]
[1719026618107,7.4152,134.86,134.81,118.579931]
[1719026620006,7.4156,134.85,134.81,118.579931]
[1719026620204,7.4156,134.85,134.81,112.099931]
[1719026620387,6.65,134.84,134.81,105.712931]
[1719026620786,14.0664,134.84,134.81,105.712931]
[1719026622797,13.8958,134.85,134.81,105.712931]
[1719026623609,7.4162,134.84,134.81,105.712931]
[1719026624295,6.48,134.85,134.81,105.712931]
[1719026624991,13.8953,134.86,134.81,112.192931]
[1719026625184,20.0,134.85,134.82,6.48]
[1719026625607,27.4156,134.85,134.81,112.192931]
[1719026625781,20.0,134.85,134.81,112.192931]
[1719026625984,7.4165,134.84,134.81,105.712931]
[1719026626610,13.8965,134.84,134.81,105.712931]
[1719026626810,7.4165,134.84,134.81,105.712931]
[1719026631512,34.0659,134.85,134.81,105.712931]
[1719026632102,27.5859,134.85,134.81,105.712931]
[1719026632284,20.17,134.85,134.81,105.712931]
[1719026632485,27.5858,134.85,134.81,105.712931]
[1719026632721,27.4158,134.85,134.81,112.192931]
[1719026632914,7.5853,134.86,134.81,112.192931]
[1719026633415,7.4157,134.85,134.81,112.192931]
[1719026635518,7.4147,134.87,134.82,6.48]
[1719026635819,20.0,134.86,134.83,6.48]
[1719026636320,7.4146,134.87,134.81,105.712931]
[1719026636528,7.4146,134.87,134.83,6.48]
[1719026637818,35.1913,134.92,134.84,6.48]
[1719026638010,7.4143,134.88,134.85,6.48]
[1719026638402,43.19305985,134.92,134.81,105.712931]
[1719026638403,137.0626,134.91,134.81,105.712931]
[1719026638612,7.4163,134.84,134.81,105.712931]
[1719026639021,7.4157,134.85,134.81,105.712931]
[1719026640405,7.4163,134.84,134.81,105.712931]
[1719026640917,7.4167,134.83,134.81,105.712931]
[1719026641701,7.4172,134.82,134.81,105.712931]
[1719026642117,13.897,134.83,134.81,105.712931]
[1719026643422,14.0663,134.84,134.81,105.712931]
[1719026644096,7.4167,134.83,134.81,105.712931]
[1719026645338,14.0664,134.84,134.81,105.712931]
[1719026645704,13.8972,134.82,134.81,105.712931]
[1719026645923,34.2372,134.82,134.81,86.45579074]
[1719026646514,52.7804,134.82,134.81,68.45579074]
[1719026646718,59.2604,134.82,134.81,67.45579074]
[1719026647031,52.7804,134.82,134.81,67.45579074]
[1719026647204,52.7804,134.82,134.81,53.25579074]
[1719026650734,52.7804,134.82,134.81,50.21579074]
[1719026651817,27.4172,134.82,134.81,50.21579074]
[1719026652135,33.8972,134.82,134.81,50.21579074]
[1719026652733,33.8972,134.82,134.81,48.62679074]
[1719026653134,34.0672,134.82,134.81,48.62679074]
[1719026653437,34.2372,134.82,134.81,48.62679074]
[1719026656239,34.2372,134.82,134.81,38.02179074]
[1719026659533,27.7572,134.82,134.81,38.02179074]
[1719026659864,34.2372,134.82,134.81,38.02179074]
[1719026660039,27.7572,134.82,134.81,38.02179074]
[1719026660243,34.2372,134.82,134.81,38.02179074]
[1719026660454,7.4171,134.83,134.81,38.02179074]
[1719026660617,5.80118676,134.85,134.81,38.02179074]
[1719026660943,27.4165,134.84,134.81,38.02179074]
[1719026662054,7.4167,134.83,134.81,38.02179074]
[1719026662341,27.4164,134.84,134.81,38.02179074]
[1719026662532,20.0,134.84,134.81,38.02179074]
[1719026662729,7.4162,134.84,134.81,38.02179074]
[1719026663037,7.4158,134.85,134.81,38.02179074]
[1719026663224,27.4153,134.86,134.82,6.48]
[1719026663431,266.17498059,134.88,134.84,6.48]
[1719026663432,260.4,134.88,134.84,6.48]
[1719026663732,7.4142,134.88,134.84,6.48]
[1719026664441,7.4147,134.87,134.83,6.0685]
[1719026664645,7.4147,134.87,134.84,6.48]
[1719026665322,7.4142,134.88,134.84,6.48]
[1719026666245,7.4145,134.87,134.84,6.48]
[1719026666415,7.4142,134.88,134.84,6.48]
[1719026666930,7.4146,134.87,134.83,12.5485]
[1719026668225,7.4142,134.88,134.83,12.5485]
[1719026670354,0.17,134.87,134.83,6.0685]
[1719026670560,6.48,134.86,134.82,16.2742]
[1719026670860,13.8954,134.86,134.82,16.2742]
[1719026671145,7.4154,134.86,134.82,16.2742]
[1719026672749,7.4154,134.86,134.82,16.3191721]
[1719026673344,7.4162,134.84,134.82,16.3191721]
[1719026675029,14.2358,134.85,134.82,16.3191721]
[1719026675335,7.7558,134.85,134.82,16.3191721]
[1719026675944,6.48,134.86,134.82,16.3191721]
[1719026676146,18.5336,134.89,134.82,22.7991721]
[1719026676325,26.48,134.88,134.83,6.48]
[1719026676531,26.48,134.88,134.82,22.7991721]
[1719026676845,26.48,134.88,134.82,16.3191721]
[1719026677149,26.48,134.88,134.82,22.7991721]
[1719026677150,6.48,134.87,134.82,22.7991721]
[1719026677447,27.5853,134.86,134.82,22.7991721]
[1719026679450,20.17,134.86,134.82,22.7991721]
[1719026679751,20.0,134.86,134.82,16.3191721]
[1719026679951,18.5311,134.91,134.84,6.48]
[1719026680125,7.4134,134.89,134.84,6.48]
[1719026681027,7.4134,134.89,134.85,6.48]
[1719026682457,7.4134,134.89,134.82,16.3191721]
[1719026682655,7.4134,134.89,134.85,6.48]
[1719026685535,6.82,134.88,134.83,6.48]
[1719026686970,7.4149,134.87,134.83,6.48]
[1719026687757,7.4149,134.87,134.83,6.5249721]
[1719026687957,14.2342,134.88,134.83,6.5249721]
[1719026689378,0.34,134.88,134.84,6.48]
[1719026689546,33.8934,134.9,134.84,6.48]
[1719026689746,0.34,134.89,134.84,6.48]
[1719026690464,7.7534,134.89,134.84,6.48]
[1719026690845,0.34,134.89,134.84,6.48]
[1719026692269,7.7535,134.89,134.84,6.48]
[1719026695275,7.7535,134.89,134.83,0.0449721]
[1719026695479,26.48,134.9,134.84,6.611]
[1719026695480,20.0,134.9,134.84,6.611]
[1719026695653,7.4126,134.91,134.87,6.48]
[1719026695844,20.0,134.9,134.87,6.48]
[1719026696369,27.4129,134.9,134.87,6.48]
[1719026696544,7.4135,134.89,134.86,6.48]
[1719026696739,7.4141,134.88,134.84,6.611]
[1719026696943,7.4141,134.88,134.85,6.48]
[1719026697536,7.4141,134.88,134.84,6.611]
[1719026697739,7.4141,134.88,134.85,6.48]
[1719026698378,7.5845,134.87,134.84,6.611]
[1719026698666,7.5845,134.87,134.83,0.0449721]
[1719026698667,0.17,134.87,134.83,0.0449721]
[1719026698867,26.65,134.87,134.83,0.0449721]
[1719026699256,7.4152,134.86,134.83,0.0449721]
[1719026700155,7.4156,134.85,134.83,0.0449721]
[1719026700969,26.65,134.84,134.81,28.45330414]
[1719026701147,7.4172,134.82,134.81,16.497778]
[1719026701348,34.2372,134.82,134.81,16.497778]
[1719026701941,27.7572,134.82,134.81,16.497778]
[1719026702373,34.2372,134.82,134.81,16.497778]
[1719026705977,27.7572,134.82,134.81,16.497778]
[1719026706754,34.2372,134.82,134.81,16.497778]
[1719026708465,27.7572,134.82,134.81,16.497778]
[1719026708776,34.2372,134.82,134.81,16.497778]
[1719026712777,27.7572,134.82,134.81,10.657778]
[1719026712985,34.2372,134.82,134.81,10.657778]
[1719026714571,34.2372,134.82,134.81,6.361778]
[1719026717273,27.7572,134.82,134.81,6.361778]
[1719026717474,34.2372,134.82,134.81,6.361778]
[1719026722606,7.4165,134.84,134.81,6.361778]
[1719026722901,7.4163,134.84,134.81,12.841778]
[1719026723668,7.4163,134.84,134.81,6.361778]
[1719026724801,7.4172,134.82,134.81,6.361778]
[1719026725382,7.5872,134.82,134.81,6.361778]
[1719026726503,34.0672,134.82,134.81,6.361778]
[1719026727373,34.2372,134.82,134.81,6.361778]
[1719026729675,27.4172,134.82,134.81,6.361778]
[1719026730579,33.8972,134.82,134.81,6.361778]
[1719026731085,34.2372,134.82,134.81,6.361778]
[1719026733277,27.5872,134.82,134.81,6.361778]
[1719026737098,46.3004,134.82,134.81,6.361778]
[1719026737283,52.7804,134.82,134.81,6.361778]
[1719026738004,46.3004,134.82,134.81,6.361778]
[1719026738210,52.7804,134.82,134.81,6.361778]
[1719026740405,27.7572,134.82,134.81,6.361778]
[1719026740610,34.2372,134.82,134.81,6.361778]
[1719026740982,27.7572,134.82,134.81,6.361778]
[1719026741288,20.0,134.82,134.81,6.361778]
[1719026741494,31.36610746,134.87,134.81,12.841778]
[1719026741683,20.0,134.86,134.81,6.361778]
[1719026741887,20.0,134.86,134.83,6.48]
[1719026742585,16.4536,134.87,134.81,21.466278]
[1719026742784,7.4139,134.89,134.86,6.48]
[1719026743297,7.4131,134.9,134.86,6.48]
[1719026743496,7.4139,134.89,134.81,21.466278]
[1719026743685,7.4141,134.88,134.82,6.48]
[1719026743891,7.4141,134.88,134.85,6.48]
[1719026744283,7.4146,134.87,134.85,6.48]
[1719026744502,7.4142,134.88,134.84,6.48]
[1719026744686,7.5836,134.89,134.85,6.48]
[1719026745614,7.4141,134.88,134.81,21.466278]
[1719026747215,7.4153,134.86,134.81,21.466278]
[1719026747716,0.17,134.89,134.81,21.466278]
[1719026747916,20.34,134.9,134.81,21.466278]
[1719026748914,7.4145,134.87,134.81,21.466278]
[1719026752620,20.34,134.9,134.81,40.906278]
[1719026752621,20.0,134.9,134.81,40.906278]
[1719026752811,29.56170516,134.92,134.82,22.6086]
[1719026753114,29.56210516,134.92,134.82,22.6086]
[1719026753318,7.4124,134.91,134.82,22.2686]
[1719026753924,7.4129,134.9,134.82,22.2686]
[1719026758422,7.4129,134.9,134.83,15.9531]
[1719026758631,20.0,134.92,134.84,19.61]
[1719026758802,20.0,134.92,134.86,15.9531]
[1719026759005,7.412,134.92,134.86,15.9531]
[1719026760113,7.4125,134.91,134.86,15.9531]
[1719026760916,7.4139,134.89,134.86,15.9531]
[1719026761124,7.4142,134.88,134.86,15.9531]
[1719026761548,7.4136,134.89,134.86,15.9531]
[1719026763749,7.4131,134.9,134.86,15.9531]
[1719026764040,7.4134,134.89,134.86,15.9531]
[1719026765143,7.4131,134.9,134.86,15.9531]
[1719026765443,7.4131,134.9,134.86,22.4331]
[1719026765825,7.415,134.87,134.82,22.3347]
[1719026766033,7.415,134.87,134.83,6.48]
[1719026766228,7.4142,134.88,134.84,6.48]
[1719026766434,0.17,134.87,134.84,6.48]
[1719026766736,20.0,134.89,134.85,6.48]
[1719026767035,133.9475,134.92,134.84,6.48]
[1719026767036,6.48,134.9,134.84,6.48]
[1719026767240,20.0,134.89,134.84,6.48]
[1719026767450,7.7542,134.88,134.84,6.48]
[1719026768045,7.4145,134.87,134.83,6.48]
[1719026768245,7.7542,134.88,134.83,6.48]
[1719026770845,7.4157,134.85,134.81,6.361778]
[1719026771045,0.17,134.84,134.81,6.361778]
[1719026771222,7.4157,134.85,134.82,6.48]
[1719026771424,7.5852,134.86,134.82,6.48]
[1719026773531,0.17,134.86,134.82,6.48]
[1719026773836,27.7551,134.86,134.82,6.48]
[1719026774044,20.34,134.86,134.82,6.48]
[1719026774348,40.5841,134.99,134.85,16.3107]
[1719026774535,6.01603273,135.0,134.93,6.48]
[1719026774846,7.4083,134.99,134.95,6.48]
[1719026775024,7.4087,134.98,134.95,6.48]
[1719026776426,20.0,134.97,134.95,6.48]
[1719026777439,27.4091,134.97,134.92,16.3107]
[1719026777646,7.4097,134.96,134.92,16.3107]
[1719026778549,27.4092,134.97,134.92,16.3107]
[1719026778926,7.4102,134.95,134.92,16.3107]
[1719026779350,7.4097,134.96,134.92,16.3107]
[1719026779939,27.4092,134.97,134.92,16.3107]
[1719026781553,7.4097,134.96,134.92,16.3107]
[1719026783350,27.4092,134.97,134.92,16.3107]
[1719026783650,7.4096,134.96,134.92,16.3107]
[1719026784853,7.4102,134.95,134.92,16.3107]
[1719026788238,7.4097,134.96,134.92,16.3107]
[1719026789553,7.4098,134.96,134.92,16.3107]
[1719026789763,7.4101,134.95,134.92,16.3107]
[1719026791139,7.4098,134.96,134.92,16.3107]
[1719026791754,20.0,134.98,134.92,16.3107]
[1719026791755,7.4093,134.97,134.92,16.3107]
[1719026793252,7.4096,134.96,134.92,16.3107]
[1719026794252,7.4092,134.97,134.92,16.3107]
[1719026795950,7.4096,134.96,134.92,16.3107]
[1719026796357,7.4101,134.95,134.92,16.3107]
[1719026797168,7.4098,134.96,134.92,16.3107]
[1719026799367,7.4098,134.96,134.94,6.47]
[1719026799868,7.4093,134.97,134.94,6.47]
[1719026800776,27.5786,134.98,134.94,6.47]
[1719026801765,27.4086,134.98,134.94,6.47]
[1719026802494,20.0,134.98,134.95,6.47]
[1719026802675,20.0,134.98,134.96,6.47]
[1719026803372,27.4085,134.98,134.96,6.47]
[1719026803872,27.4085,134.98,134.95,6.47]
[1719026804068,20.0,134.98,134.95,6.47]
[1719026804371,7.4082,134.99,134.95,6.47]
[1719026804946,7.4086,134.98,134.95,6.47]
[1719026805349,7.4092,134.97,134.93,6.6336]
[1719026805548,7.4092,134.97,134.95,6.47]
[1719026805773,7.4092,134.97,134.94,6.47]
[1719026806666,7.4087,134.98,134.94,6.47]
[1719026807667,6.47,135.0,134.95,6.47]
[1719026807880,26.81,134.99,134.92,16.3107]
[1719026808063,7.4091,134.97,134.93,6.47]
[1719026808265,7.4091,134.97,134.94,6.47]
[1719026808645,7.4086,134.98,134.94,6.47]
[1719026810277,7.4086,134.98,134.95,6.47]
[1719026810588,26.81,134.99,134.94,6.47]
[1719026810789,7.4092,134.97,134.94,6.47]
[1719026811156,7.4092,134.97,134.92,16.3107]
[1719026811365,7.4092,134.97,134.94,6.47]
[1719026811580,7.4092,134.97,134.95,6.47]
[1719026812252,7.4092,134.97,134.94,6.47]
[1719026813068,7.4087,134.98,134.94,6.47]
[1719026813678,7.4091,134.97,134.94,6.47]
[1719026816077,20.17,134.99,134.92,16.3107]
[1719026816280,20.17,134.99,134.94,6.47]
[1719026816582,7.4087,134.98,134.94,6.47]
[1719026817455,7.4087,134.98,134.92,16.3107]
[1719026817650,7.4087,134.98,134.95,6.47]
[1719026819085,7.409,134.97,134.95,6.47]
[1719026819578,20.0,134.99,134.96,6.47]
[1719026819879,7.4077,135.0,134.97,6.47]
[1719026820585,7.407,135.01,134.97,6.47]
[1719026820967,7.4076,135.0,134.97,6.47]
[1719026822302,6.47,135.01,134.92,16.3107]
[1719026822584,6.47,135.01,134.94,6.47]
[1719026822585,7.4087,134.98,134.94,6.47]
[1719026822756,7.4091,134.97,134.94,6.47]
[1719026822962,7.4087,134.98,134.94,6.47]
[1719026823588,7.4087,134.98,134.95,6.47]
[1719026825464,6.81,135.0,134.9,6.4244]
[1719026825465,6.47,134.96,134.9,6.4244]
[1719026825686,37.0405,134.99,134.88,15.548]
[1719026825687,45.3356,134.95,134.88,15.548]
[1719026825870,7.4115,134.93,134.88,15.548]
[1719026826191,7.4115,134.93,134.9,6.47]
[1719026826389,27.7506,134.95,134.91,6.47]
[1719026826569,27.4105,134.95,134.92,6.47]
[1719026828279,7.4107,134.94,134.92,6.47]
[1719026828472,27.4104,134.95,134.92,6.47]
[1719026830200,7.4107,134.94,134.92,6.47]
[1719026831074,7.4112,134.93,134.91,6.47]
[1719026831295,6.47,134.94,134.87,6.4244]
[1719026831464,20.0,134.95,134.9,6.47]
[1719026831465,7.4113,134.93,134.9,6.47]
[1719026832402,44.9965,134.95,134.87,6.4244]
[1719026832567,7.4132,134.9,134.85,15.5542]
[1719026832772,7.4132,134.9,134.87,6.47]
[1719026832982,7.4126,134.91,134.87,6.47]
[1719026833180,7.4126,134.91,134.88,6.47]
[1719026834681,7.4126,134.91,134.85,15.5542]
[1719026834887,7.4126,134.91,134.88,6.47]
[1719026835109,7.4126,134.91,134.85,15.5542]
[1719026835285,7.4126,134.91,134.88,6.47]
[1719026835997,7.4126,134.91,134.85,15.5542]
[1719026836311,7.4126,134.91,134.88,6.47]
[1719026837305,7.413,134.9,134.87,6.47]
[1719026838287,7.4125,134.91,134.88,6.47]
[1719026838701,7.4129,134.9,134.88,6.47]
[1719026839789,18.7008,134.92,134.85,15.5542]
[1719026840023,7.413,134.9,134.85,15.5542]
[1719026840185,7.4123,134.91,134.88,6.47]
[1719026840688,7.582,134.92,134.85,15.5542]
[1719026840890,7.4124,134.91,134.85,15.5542]
[1719026841385,7.4124,134.91,134.88,6.47]
[1719026842794,7.4119,134.92,134.89,6.47]
[1719026843006,7.4113,134.93,134.89,6.47]
[1719026844608,7.4119,134.92,134.89,6.47]
[1719026849185,7.4131,134.9,134.85,15.5542]
[1719026849408,7.4126,134.91,134.88,6.47]
[1719026849810,7.4126,134.91,134.89,6.47]
[1719026850309,7.4125,134.91,134.85,15.5542]
[1719026850492,7.4132,134.9,134.85,15.5542]
[1719026850696,7.4132,134.9,134.88,6.47]
[1719026850898,7.4125,134.91,134.89,6.47]
[1719026853512,7.413,134.9,134.85,15.5542]
[1719026853915,7.413,134.9,134.89,6.47]
[1719026854610,7.4124,134.91,134.89,6.47]
[1719026860038,38.5256,134.95,134.89,6.47]
[1719026860233,6.339,134.97,134.85,15.5542]
[1719026860234,6.339,134.97,134.92,6.47]
[1719026860410,7.4103,134.95,134.92,6.47]
[1719026862431,7.4108,134.94,134.92,6.47]
[1719026863097,7.4108,134.94,134.91,6.47]
[1719026863615,7.4112,134.93,134.85,15.5542]
[1719026863825,7.4112,134.93,134.9,6.47]
[1719026863996,6.64,134.95,134.85,15.5542]
[1719026863997,7.4118,134.92,134.85,15.5542]
[1719026864200,7.4118,134.92,134.89,6.47]
[1719026864499,7.4115,134.93,134.9,6.47]
[1719026865604,0.17,134.95,134.9,6.47]
[1719026865799,6.47,134.95,134.9,6.47]
[1719026866000,7.7512,134.94,134.9,6.47]
[1719026866648,7.4113,134.93,134.9,6.47]
[1719026869948,0.34,134.94,134.85,15.5542]
[1719026869949,0.34,134.94,134.91,6.47]
[1719026870250,0.34,134.95,134.91,6.47]
[1719026870453,7.4108,134.94,134.91,6.47]
[1719026872152,7.4113,134.93,134.9,6.47]
[1719026872458,7.4113,134.93,134.91,6.47]
[1719026872758,7.4093,134.97,134.92,6.47]
[1719026872953,6.3303,135.0,134.89,6.47]
[1719026872954,24.8489,135.0,134.93,6.47]
[1719026873158,7.4082,134.99,134.95,6.47]
[1719026873853,6.47,135.01,134.95,6.47]
[1719026874220,12.34999205,135.01,134.95,6.47]
[1719026874936,20.0,135.0,134.95,6.47]
[1719026875239,0.34,134.99,134.95,6.47]
[1719026875639,7.4087,134.98,134.95,6.47]
[1719026880151,0.34,134.99,134.9,15.0336]
[1719026880152,0.17,134.97,134.9,15.0336]
[1719026880363,7.4091,134.97,134.93,6.47]
[1719026880535,7.4091,134.97,134.94,6.47]
[1719026881135,7.4097,134.96,134.9,15.0336]
[1719026881365,7.4097,134.96,134.92,6.47]
[1719026885464,7.4097,134.96,134.9,15.0336]
[1719026887531,7.4097,134.96,134.92,6.47]
[1719026888664,7.4097,134.96,134.9,15.0336]
[1719026888845,7.4097,134.96,134.93,6.47]
[1719026890531,20.0,135.0,134.93,6.47]
[1719026890731,27.4076,135.0,134.96,6.47]
[1719026891162,7.4076,135.0,134.96,6.47]
[1719026891842,7.408,134.99,134.9,15.0336]
[1719026892164,7.408,134.99,134.96,6.47]
[1719026892863,7.4085,134.98,134.95,6.47]
[1719026894259,7.4085,134.98,134.9,15.0336]
[1719026894562,18.6882,135.01,134.93,6.47]
[1719026894563,7.4092,134.97,134.93,6.47]
[1719026895346,6.47,134.97,134.92,6.47]
[1719026895536,7.4097,134.96,134.92,6.47]
[1719026898657,6.47,134.96,134.91,6.47]
[1719026898963,7.5803,134.95,134.91,6.47]
[1719026899969,7.4107,134.94,134.91,6.47]
[1719026900271,0.17,134.95,134.91,6.47]
[1719026900435,7.5804,134.95,134.91,6.47]
[1719026902772,7.5804,134.95,134.92,6.47]
[1719026903461,7.4098,134.96,134.92,6.47]
[1719026903663,7.4098,134.96,134.93,6.47]
[1719026906165,29.41868379,135.02,134.93,6.47]
[1719026906371,27.4069,135.01,134.96,6.47]
[1719026906673,7.4075,135.0,134.96,6.47]
[1719026906873,276.8098,135.05,134.95,16.4316]
[1719026907038,276.8098,135.05,134.99,6.47]
[1719026907039,7.4058,135.03,134.99,6.47]